bitfinex-derivatives/quotes_BNBF0:USTF0_20250116
["timestamp","ask_amount","ask_price","bid_price","bid_amount"]
[1737020491588,0.28333427,705.88,704.47,1.31686671]
[1737020491893,0.28333427,705.88,704.48,0.26065388]
[1737020492289,0.28333427,705.88,704.48,1.31686637]
[1737020492493,0.28333427,705.88,704.49,0.26065388]
[1737020493896,0.28333427,705.88,704.5,0.26065388]
[1737020494095,0.28333427,705.88,704.51,0.26065388]
[1737020494289,0.28333427,705.88,704.52,0.26065388]
[1737020494493,0.28333427,705.88,704.53,0.26065388]
[1737020494692,0.28333427,705.88,704.54,0.26065291]
[1737020494895,0.28333427,705.88,704.48,0.26065291]
[1737020495090,0.28333427,705.88,704.49,0.26065291]
[1737020495293,0.28333427,705.88,704.47,1.05621249]
[1737020495490,0.28333427,705.88,704.48,0.26065517]
[1737020497490,0.28333427,705.88,704.49,0.26065513]
[1737020497691,0.28333427,705.88,702.37,2.821499]
[1737020497890,0.28333427,705.88,702.38,3.42551878]
[1737020498091,0.28333427,705.88,702.39,2.821499]
[1737020498291,0.28333427,705.88,702.4,3.42551878]
[1737020498493,0.28333427,705.88,702.41,3.42551878]
[1737020498691,0.28333427,705.88,704.48,1.05915878]
[1737020498892,0.28333427,705.88,704.49,0.26065513]
[1737020499695,0.28333427,705.88,704.49,1.31981391]
[1737020499897,0.28333427,705.88,704.5,0.26065513]
[1737020500990,0.28333427,705.88,704.58,1.05915878]
[1737020501196,0.28333427,705.88,704.59,0.26065513]
[1737020503101,0.28333427,705.88,704.62,1.05915878]
[1737020503395,0.28333427,705.88,704.63,0.26065194]
[1737020503800,0.28333427,705.88,704.64,1.31980956]
[1737020504001,0.28333427,705.88,704.65,0.26065078]
[1737020505798,0.28333427,705.88,704.66,0.260653]
[1737020505999,0.28333427,705.88,704.67,0.260653]
[1737020506199,0.28333427,705.88,704.68,0.260653]
[1737020506399,0.28333427,705.88,704.69,0.260653]
[1737020506701,0.28333427,705.88,704.7,0.260653]
[1737020506900,0.28333427,705.88,704.65,1.05915878]
[1737020507100,0.28333427,705.88,704.66,0.26065056]
[1737020507795,0.28333427,705.88,704.67,0.26065056]
[1737020508100,0.28333427,705.88,704.68,0.26065056]
[1737020508301,0.28333427,705.88,704.64,1.05915878]
[1737020508601,0.28333427,705.88,704.65,0.26064852]
[1737020508902,0.28333427,705.88,704.67,1.05915878]
[1737020509301,0.28333427,705.88,704.68,0.26064871]
[1737020509502,0.28333427,705.88,704.67,1.05915878]
[1737020509702,0.28333427,705.88,704.68,1.31980168]
[1737020510002,0.28333427,705.88,704.69,0.2606429]
[1737020510605,0.28333427,705.88,704.71,1.05915878]
[1737020511205,0.28333427,705.88,704.72,1.05915878]
[1737020512204,0.28333427,705.88,704.73,1.05915878]
[1737020513205,0.28333427,705.88,704.74,1.05915878]
[1737020513602,0.28333427,705.88,704.75,0.26062864]
[1737020514505,0.28333427,705.88,704.8,1.05915878]
[1737020515305,0.28333427,705.88,698.44,5.04590204]
[1737020515306,0.28333427,705.88,704.85,1.05915878]
[1737020516606,0.28333427,705.88,704.84,1.05915878]
[1737020517408,1.05804749,705.87,704.84,1.05915878]
[1737020518607,1.34138176,705.88,704.86,1.05915878]
[1737020519302,1.34138176,705.88,704.85,1.05915878]
[1737020519303,0.28333427,705.88,704.85,1.05915878]
[1737020520501,0.28333427,705.88,704.86,1.05915878]
[1737020521609,1.34138176,705.88,704.86,1.05915878]
[1737020522611,0.28333427,705.88,704.87,1.05915878]
[1737020523513,0.28333427,705.88,704.85,1.05915878]
[1737020524308,0.28333427,705.88,704.83,1.05915878]
[1737020525413,0.28333427,705.88,704.81,1.05915878]
[1737020526314,0.28333427,705.88,704.77,1.05915878]
[1737020527713,0.28333427,705.88,704.1,2.16244917]
[1737020527714,0.28333427,705.88,704.73,1.05915878]
[1737020528013,0.28333427,705.88,704.74,0.26060615]
[1737020528413,0.28333427,705.88,704.73,1.05915878]
[1737020528713,0.28333427,705.88,704.74,0.26060687]
[1737020528912,0.28333427,705.88,704.74,1.05915878]
[1737020529816,0.28333427,705.88,704.1,2.16244917]
[1737020529817,0.28333427,705.88,704.73,1.05915878]
[1737020530816,0.28333427,705.88,704.74,0.26060377]
[1737020531011,0.28333427,705.88,704.75,0.26060377]
[1737020531214,0.28333427,705.88,704.72,1.05915878]
[1737020531215,0.28333427,705.88,704.76,0.26060377]
[1737020531413,0.28333427,705.88,704.77,0.26060377]
[1737020531615,0.28333427,705.88,704.17,1.27099053]
[1737020531616,0.28333427,705.88,704.79,1.05915878]
[1737020531811,0.28333427,705.88,704.8,0.26060377]
[1737020532415,0.28333427,705.88,704.79,1.05915878]
[1737020532720,0.28333427,705.88,704.8,0.26060562]
[1737020533622,0.28333427,705.88,704.8,1.3197644]
[1737020533820,0.28333427,705.88,704.81,0.26060562]
[1737020534417,0.28333427,705.88,704.8,1.05915878]
[1737020535923,0.28333427,705.88,704.68,1.05915878]
[1737020536623,0.28333427,705.88,704.69,0.26060641]
[1737020536823,0.28333427,705.88,704.7,1.05915878]
[1737020538125,0.28333427,705.88,704.74,1.05915878]
[1737020539928,0.28333427,705.88,704.71,1.05915878]
[1737020540628,0.28333427,705.88,704.72,1.05915878]
[1737020543228,0.28333427,705.88,704.15,1.27099053]
[1737020543229,0.28333427,705.88,704.74,1.05915878]
[1737020545030,0.28333427,705.88,704.77,1.05915878]
[1737020547030,0.28333427,705.88,704.78,1.05915878]
[1737020547829,0.28333427,705.88,704.79,1.05915878]
[1737020549532,0.28333427,705.88,704.54,1.05915878]
[1737020549533,0.28333427,705.88,704.8,1.05915878]
[1737020551434,0.28333427,705.88,704.43,1.05915878]
[1737020551435,0.28333427,705.88,704.77,1.05915878]
[1737020552234,0.28333427,705.88,704.81,1.05915878]
[1737020553134,0.28333427,705.88,704.82,1.05915878]
[1737020554133,0.28333427,705.88,704.91,1.05915878]
[1737020557136,0.28333427,705.88,704.88,1.05915878]
[1737020557932,0.28333427,705.88,704.53,1.05915878]
[1737020559239,1.05804749,705.78,704.47,1.05915878]
[1737020560433,1.05804749,705.79,704.35,1.05915878]
[1737020562140,0.28333427,705.88,704.1,1.05915878]
[1737020562141,1.05804749,705.86,704.1,1.05915878]
[1737020562338,1.05804749,705.86,704.11,0.26077869]
[1737020563340,0.28333427,705.88,704.11,0.26077869]
[1737020563537,0.28333427,705.88,704.03,0.26077869]
[1737020563834,0.28333427,705.88,704.02,1.05915878]
[1737020564040,0.28333427,705.88,704.04,0.26075097]
[1737020564243,0.28333427,705.88,704.03,0.8649672]
[1737020564437,0.28333427,705.88,704.14,1.05915878]
[1737020564637,0.28333427,705.88,704.15,0.26075097]
[1737020565836,0.28333427,705.88,704.16,0.26075097]
[1737020566040,0.28333427,705.88,704.17,0.26075097]
[1737020566240,0.28333427,705.88,704.18,0.26075097]
[1737020566440,0.28333427,705.88,704.12,0.26075097]
[1737020566742,0.28333427,705.88,704.06,1.05915878]
[1737020566946,0.28333427,705.88,704.07,0.26074355]
[1737020567942,0.28333427,705.88,704.05,1.05915878]
[1737020567943,0.28333427,705.88,704.06,0.26074355]
[1737020568141,0.28333427,705.88,703.53,1.27099053]
[1737020568142,0.28333427,705.88,704.07,0.26074355]
[1737020568337,0.28333427,705.88,704.04,0.26074355]
[1737020568542,0.28333427,705.88,704.05,0.26074355]
[1737020568747,0.28333427,705.88,704.06,0.26074355]
[1737020569437,0.28333427,705.88,704.07,0.28406266]
[1737020569637,0.28333427,705.88,704.08,0.26074468]
[1737020571439,0.28333427,705.88,704.09,0.28405459]
[1737020571643,0.28333427,705.88,704.1,0.26074468]
[1737020571843,0.28333427,705.88,704.11,0.28404652]
[1737020572042,0.28333427,705.88,704.12,0.26074468]
[1737020572441,0.28333427,705.88,704.13,0.26074594]
[1737020572643,0.28333427,705.88,704.12,0.26074594]
[1737020572945,0.28333427,705.88,704.13,0.26074594]
[1737020573145,0.28333427,705.88,704.12,0.26074594]
[1737020573338,0.28333427,705.88,704.13,0.26074594]
[1737020573539,0.28333427,705.88,704.14,0.26074594]
[1737020573743,0.28333427,705.88,704.12,0.26074594]
[1737020573946,0.28333427,705.88,704.13,0.26074594]
[1737020574144,0.28333427,705.88,704.14,0.26074594]
[1737020574346,0.28333427,705.88,704.15,0.26074594]
[1737020574548,0.28333427,705.88,704.16,0.26074594]
[1737020574748,0.28333427,705.88,704.17,0.26074594]
[1737020574944,0.28333427,705.88,704.18,0.26074594]
[1737020575149,0.28333427,705.88,704.11,0.28404652]
[1737020575450,0.28333427,705.88,704.12,0.26074574]
[1737020575845,0.28333427,705.88,704.11,0.28404652]
[1737020576045,0.28333427,705.88,704.12,0.86493997]
[1737020576245,0.28333427,705.88,704.13,0.26074574]
[1737020576449,0.28333427,705.88,704.14,0.26074574]
[1737020576750,0.28333427,705.88,704.12,0.60419423]
[1737020576751,0.28333427,705.88,704.15,0.26074574]
[1737020576951,0.28333427,705.88,704.16,0.26074574]
[1737020577149,0.28333427,705.88,704.19,1.05915878]
[1737020577343,0.28333427,705.88,704.2,0.60419423]
[1737020577647,0.28333427,705.88,704.21,0.60406942]
[1737020577851,0.28333427,705.88,704.21,0.86474882]
[1737020578047,0.28333427,705.88,704.2,0.2606794]
[1737020578252,0.28333427,705.88,704.22,1.05915878]
[1737020578451,0.28333427,705.88,704.23,0.26069294]
[1737020578954,0.28333427,705.88,704.24,0.26069836]
[1737020579146,0.28333427,705.88,704.25,0.26069836]
[1737020579352,0.28333427,705.88,704.26,0.26069836]
[1737020579553,0.28333427,705.88,704.27,0.26069836]
[1737020579856,0.28333427,705.88,704.28,0.26069836]
[1737020580051,0.28333427,705.88,704.21,0.26069836]
[1737020580247,0.28333427,705.88,704.29,0.26069836]
[1737020580656,0.28333427,705.88,704.3,0.26069836]
[1737020580850,0.28333427,705.88,704.22,0.28400215]
[1737020588363,0.28333427,705.88,704.23,0.26071732]
[1737020588663,0.28333427,705.88,703.55,1.05915878]
[1737020588664,0.28333427,705.88,704.24,0.54471426]
[1737020588866,0.28333427,705.88,704.25,0.26072017]
[1737020589468,0.28333427,705.88,704.31,1.05915878]
[1737020589667,0.28333427,705.88,704.32,0.26072017]
[1737020590358,0.28333427,705.88,704.31,1.05915878]
[1737020590561,0.28333427,705.88,704.36,1.05915878]
[1737020591366,0.28333427,705.88,704.24,0.28399409]
[1737020591566,0.28333427,705.88,704.25,0.2607252]
[1737020592567,0.28333427,705.88,704.28,1.05915878]
[1737020592766,0.28333427,705.88,704.29,0.2607252]
[1737020593161,0.28333427,705.88,704.24,0.28399409]
[1737020593765,0.28333427,705.88,704.27,1.06099916]
[1737020595466,0.28333427,705.88,704.28,1.06099916]
[1737020595665,1.48073555,705.87,704.28,1.06099916]
[1737020596064,0.28334632,705.85,704.28,1.06099916]
[1737020596770,0.28334632,705.85,704.31,1.06099916]
[1737020597867,0.28334632,705.85,704.34,1.06099916]
[1737020598769,0.28334632,705.85,704.36,1.06099916]
[1737020599862,0.28334632,705.85,704.37,1.06099916]
[1737020600069,0.28334632,705.85,704.38,0.26069985]
[1737020600372,0.28334632,705.85,704.38,0.54463749]
[1737020600564,0.28334632,705.85,704.39,0.26069985]
[1737020600873,0.28334632,705.85,704.46,1.06099916]
[1737020601867,0.28334632,705.85,704.47,0.26068274]
[1737020602067,0.28334632,705.85,704.51,1.06099916]
[1737020602272,0.28334632,705.85,704.52,0.26068274]
[1737020602474,0.28334632,705.85,704.51,1.06099916]
[1737020602669,0.28334632,705.85,704.53,0.26066857]
[1737020602874,0.28334632,705.85,704.51,1.06099916]
[1737020602875,0.28334632,705.85,704.54,0.26066857]
[1737020603175,1.05854408,705.84,704.65,1.06099916]
[1737020604475,0.28334632,705.85,704.64,1.06099916]
[1737020607275,0.28334632,705.85,704.65,0.26066583]
[1737020608474,0.28334632,705.85,704.68,1.06099916]
[1737020611279,1.3418904,705.85,704.63,1.06099916]
[1737020611484,1.3418904,705.85,704.64,0.26067829]
[1737020611784,1.3418904,705.85,704.65,0.26067064]
[1737020611981,1.3418904,705.85,704.66,0.26067064]
[1737020612182,1.3418904,705.85,704.67,0.26067064]
[1737020612382,1.3418904,705.85,704.68,0.26067064]
[1737020612584,1.05854408,705.83,704.66,1.06099916]
[1737020612784,1.05854408,705.83,704.67,0.26066424]
[1737020613579,1.3418904,705.85,704.67,1.3216634]
[1737020613780,1.3418904,705.85,704.68,0.26066424]
[1737020614384,1.3418904,705.85,704.67,1.06099916]
[1737020614686,0.28334632,705.85,704.67,1.06099916]
[1737020615685,0.28334632,705.85,704.38,0.28393764]
[1737020615686,1.3418904,705.85,704.68,0.26066789]
[1737020615884,1.3418904,705.85,704.66,1.06099916]
[1737020616080,1.3418904,705.85,704.67,0.26066789]
[1737020616682,1.3418904,705.85,704.66,1.06099916]
[1737020617685,0.28334632,705.85,704.38,0.28393764]
[1737020621690,1.05854408,706.66,704.36,1.06099916]
[1737020622891,1.05854408,706.66,703.77,1.06099916]
[1737020622892,1.05854408,706.69,704.34,1.06099916]
[1737020623991,1.05854408,706.7,704.32,1.06099916]
[1737020625284,1.05854408,706.68,704.3,1.06099916]
[1737020626086,1.05854408,706.68,704.31,0.26061565]
[1737020626791,1.05854408,706.68,704.3,1.06099916]
[1737020627292,1.05854408,706.63,704.32,1.06099916]
[1737020628294,1.05854408,706.63,704.26,1.06099916]
[1737020628295,1.05854408,706.45,704.26,1.06099916]
[1737020629190,1.48021594,706.67,704.29,1.06099916]
[1737020629191,1.05854408,706.43,704.29,1.06099916]
[1737020630897,1.05854408,706.41,704.3,1.06099916]
[1737020631687,1.05854408,706.41,704.31,1.06099916]
[1737020632891,1.48021594,706.67,704.32,1.06099916]
[1737020632892,1.05854408,706.39,704.32,1.06099916]
[1737020633089,1.05854408,706.39,704.33,0.26066306]
[1737020633396,1.05854408,706.39,704.34,0.26066226]
[1737020633598,1.05854408,705.94,704.62,1.06099916]
[1737020633894,1.05854408,705.94,704.63,0.26066226]
[1737020634894,1.05854408,705.93,704.63,1.32166142]
[1737020635094,1.05854408,705.93,704.64,0.26066226]
[1737020635493,1.05854408,705.93,704.65,0.2606596]
[1737020635696,1.05854408,705.93,704.66,0.2606596]
[1737020635897,1.05854408,705.93,704.65,1.06099916]
[1737020636196,1.05854408,705.93,704.66,0.2606596]
[1737020636596,1.05854408,705.93,704.65,1.06099916]
[1737020636897,2.16119417,706.47,700.74,1.41855587]
[1737020636898,1.05854408,705.9,704.67,1.06099916]
[1737020638090,1.2702529,706.17,704.67,1.06099916]
[1737020638091,1.05854408,706.06,704.67,1.06099916]
[1737020638994,1.05854408,706.05,704.66,1.06099916]
[1737020639795,4.35857451,706.66,704.66,1.06099916]
[1737020639796,1.05854408,706.04,704.66,1.06099916]
[1737020640600,1.05854408,706.03,704.66,1.06099916]
[1737020641903,1.05854408,706.02,704.65,1.06099916]
[1737020643002,1.05854408,706.03,704.67,1.06099916]
[1737020643997,1.05854408,706.02,704.67,1.06099916]
[1737020644699,1.48031563,706.01,704.67,1.06099916]
[1737020644899,2.53885971,706.01,704.65,1.06099916]
[1737020645701,2.53885971,706.01,704.66,1.06099916]
[1737020646700,1.48031563,706.01,704.63,1.06099916]
[1737020646899,1.48031563,706.01,704.64,0.26063936]
[1737020648003,1.05854408,706.0,704.7,1.06099916]
[1737020648902,1.05854408,705.98,704.7,1.06099916]
[1737020649604,1.05854408,705.97,704.7,1.06099916]
[1737020650904,1.05854408,705.98,704.72,1.06099916]
[1737020652101,1.05854408,705.96,704.72,1.06099916]
[1737020654108,1.48031563,706.01,704.69,1.06099916]
[1737020654405,0.28328611,706.0,704.69,1.06099916]
[1737020655803,0.28328611,706.0,704.71,1.06099916]
[1737020657208,0.28328611,706.0,704.7,1.06099916]
[1737020658511,1.05854408,705.99,704.72,1.06099916]
[1737020658704,0.28329414,705.98,704.72,1.06099916]
[1737020659409,1.34183822,705.98,704.72,1.06099916]
[1737020660411,1.05854408,705.97,704.72,1.06099916]
[1737020660611,0.28330217,705.96,704.72,1.06099916]
[1737020661414,1.34184625,705.96,704.73,1.06099916]
[1737020662815,0.28330217,705.96,704.73,1.06099916]
[1737020663715,0.28330217,705.96,704.74,1.06099916]
[1737020664615,1.05854408,705.91,704.77,1.06099916]
[1737020665613,1.05854408,705.93,704.76,1.06099916]
[1737020666615,1.05854408,705.94,704.75,1.06099916]
[1737020667518,1.05854408,705.94,704.76,1.06099916]
[1737020668419,1.05854408,705.94,704.79,1.06099916]
[1737020669420,1.05854408,705.93,704.79,1.06099916]
[1737020670120,1.05854408,705.92,704.79,1.06099916]
[1737020671123,1.05854408,705.92,704.25,0.72163335]
[1737020671124,1.05854408,705.9,704.8,1.06099916]
[1737020672424,1.05854408,705.9,704.81,0.26060966]
[1737020672726,1.05854408,705.88,704.81,1.32160882]
[1737020672918,1.05854408,705.88,704.82,0.26060966]
[1737020673522,1.05854408,705.91,704.94,1.06099916]
[1737020674525,1.05854408,705.95,704.95,1.06099916]
[1737020675529,1.34184625,705.96,704.92,1.06099916]
[1737020676827,0.28330217,705.96,704.93,1.06099916]
[1737020677825,0.28330217,705.96,704.92,1.06099916]
[1737020678823,0.28330217,705.96,704.9,1.06099916]
[1737020680027,0.28330217,705.96,704.89,1.06099916]
[1737020681030,0.28330217,705.96,704.88,1.06099916]
[1737020681930,0.28330217,705.96,704.89,1.06099916]
[1737020683129,0.28330217,705.96,704.83,1.06099916]
[1737020684227,0.28330217,705.96,704.84,1.06099916]
[1737020685333,0.28330217,705.96,704.83,1.06099916]
[1737020686235,0.28330217,705.96,704.85,0.26057149]
[1737020686428,0.28330217,705.96,704.83,1.06099916]
[1737020686626,0.28330217,705.96,704.84,0.26057112]
[1737020686826,0.28330217,705.96,704.85,0.26057112]
[1737020687031,0.28330217,705.96,704.82,1.06099916]
[1737020687232,0.28330217,705.96,704.83,0.26057094]
[1737020687633,0.28330217,705.96,704.84,1.06099916]
[1737020687828,0.28330217,705.96,704.85,0.26057094]
[1737020688734,0.28330217,705.96,704.86,1.06099916]
[1737020688930,0.28330217,705.96,704.87,0.26057094]
[1737020689133,0.28330217,705.96,704.86,1.06099916]
[1737020690334,0.28330217,705.96,704.77,1.06099916]
[1737020691135,0.28330217,705.96,704.37,1.06099916]
[1737020691136,0.28330217,705.96,704.76,1.06099916]
[1737020691335,0.28330217,705.96,704.77,0.26056167]
[1737020693036,0.28330217,705.96,704.78,0.2605569]
[1737020693335,0.28330217,705.96,704.79,0.2605569]
[1737020693534,0.28330217,705.96,704.76,0.2605569]
[1737020693735,0.28330217,705.96,704.77,0.26055074]
[1737020693934,0.28330217,705.96,704.77,1.06099916]
[1737020694230,0.28330217,705.96,704.78,0.26055074]
[1737020694435,0.28330217,705.96,704.77,1.06099916]
[1737020694830,0.28330217,705.96,704.78,0.26056106]
[1737020695237,0.28330217,705.96,704.75,1.06099916]
[1737020695538,0.28330217,705.96,704.76,0.26056032]
[1737020695737,0.28330217,705.96,704.75,1.06099916]
[1737020695932,0.28330217,705.96,704.76,0.26056216]
[1737020696133,0.28330217,705.96,704.75,1.06099916]
[1737020696337,0.28330217,705.96,704.76,0.2605609]
[1737020696732,0.28330217,705.96,704.75,0.2605609]
[1737020697037,0.28330217,705.96,704.76,0.26056084]
[1737020697239,0.28330217,705.96,704.74,1.06099916]
[1737020697438,0.28330217,705.96,704.75,0.2605599]
[1737020698534,0.28330217,705.96,704.11,1.27319899]
[1737020698535,0.28330217,705.96,704.76,1.32154933]
[1737020698734,0.28330217,705.96,704.77,0.26055017]
[1737020699641,0.28330217,705.96,704.85,1.06099916]
[1737020699834,0.28330217,705.96,704.86,0.26055017]
[1737020700642,0.28330217,705.96,704.87,1.06099916]
[1737020700941,0.28330217,705.96,704.88,0.26054233]
[1737020701535,0.28330217,705.96,704.9,1.06099916]
[1737020701940,0.28330217,705.96,704.91,0.26052366]
[1737020703043,0.28330217,705.96,704.94,1.06099916]
[1737020703444,0.28330217,705.96,704.95,0.26052463]
[1737020703841,0.28330217,705.96,704.95,1.32152379]
[1737020704144,0.28330217,705.96,704.95,1.06099916]
[1737020705241,0.28330217,705.96,704.87,1.06099916]
[1737020705446,0.28330217,705.96,704.88,0.26054133]
[1737020705945,0.28330217,705.96,704.87,1.06099916]
[1737020706142,0.28330217,705.96,704.88,0.26053753]
[1737020706347,0.28330217,705.96,704.9,1.06099916]
[1737020706552,0.28330217,705.96,704.91,0.26053753]
[1737020707244,0.28330217,705.96,704.94,1.06099916]
[1737020707446,0.28330217,705.96,704.95,0.26053753]
[1737020708243,0.28330217,705.96,704.96,1.06099916]
[1737020708442,0.28330217,705.96,704.97,0.26053753]
[1737020708642,0.28330217,705.96,704.96,1.06099916]
[1737020708848,1.05854408,706.33,704.97,0.26052186]
[1737020709043,0.28315777,706.32,704.97,0.26051859]
[1737020709445,0.28315777,706.32,704.98,0.26051988]
[1737020709646,0.28315777,706.32,704.97,0.26051988]
[1737020709848,0.28315777,706.32,704.99,1.06099916]
[1737020710047,0.28315777,706.32,705.0,0.26051988]
[1737020710745,1.05854408,706.24,705.06,1.06099916]
[1737020711046,1.05854408,706.24,705.07,0.26051988]
[1737020712950,1.05854408,706.25,705.07,0.26051988]
[1737020713749,1.05854408,706.25,705.07,1.32151904]
[1737020713951,1.05854408,706.25,705.08,0.26051988]
[1737020714145,1.05854408,706.25,705.07,1.06099916]
[1737020714345,1.05854408,706.25,705.08,0.26051529]
[1737020714550,1.05854408,706.26,705.08,0.26051529]
[1737020715548,1.05854408,706.29,705.09,1.06099916]
[1737020715751,1.05854408,706.29,705.1,0.26051529]
[1737020715953,1.05854408,706.29,705.09,1.06099916]
[1737020716152,1.05854408,706.29,705.1,0.26050549]
[1737020716653,1.05854408,706.29,705.11,0.26050549]
[1737020716852,1.05854408,706.29,705.08,1.06099916]
[1737020717053,1.05854408,706.29,705.09,0.26050486]
[1737020717950,1.05854408,706.31,705.1,1.06099916]
[1737020718156,0.28316579,706.3,705.11,0.26050486]
[1737020719062,0.28316579,706.3,705.1,1.06099916]
[1737020719458,0.28316579,706.3,705.11,0.26050997]
[1737020719663,0.28316579,706.3,705.1,1.06099916]
[1737020719862,0.28316579,706.3,705.11,0.26050492]
[1737020722861,0.28316579,706.3,705.1,1.06099916]
[1737020724557,0.28316579,706.3,705.11,0.2605083]
[1737020725165,0.28316579,706.3,705.1,1.06099916]
[1737020729366,1.76278908,706.3,704.92,1.06099916]
[1737020730461,1.76278908,706.3,704.93,1.06099916]
[1737020730869,0.28316579,706.3,704.93,1.06099916]
[1737020731466,0.28316579,706.3,704.96,1.06099916]
[1737020732565,0.28316579,706.3,704.35,1.27319899]
[1737020732566,0.28316579,706.3,705.0,1.06099916]
[1737020733473,0.28316579,706.3,705.06,1.06099916]
[1737020734672,0.28316579,706.3,696.87,5.04590204]
[1737020734673,0.28316579,706.3,705.12,1.06099916]
[1737020735773,0.28316579,706.3,705.13,0.26046628]
[1737020736171,0.28316579,706.3,705.14,0.26044139]
[1737020736369,0.28316579,706.3,704.53,1.27319899]
[1737020736370,0.28316579,706.3,705.26,1.06099916]
[1737020736873,0.28316579,706.3,705.27,0.26043127]
[1737020737270,0.28316579,706.3,705.27,1.32143043]
[1737020737474,0.28316579,706.3,705.27,1.06099916]
[1737020737674,0.28316579,706.3,705.28,0.26042994]
[1737020737875,0.28316579,706.3,705.27,1.06099916]
[1737020738176,0.28316579,706.3,705.28,0.26043072]
[1737020738376,0.28316579,706.3,705.26,1.06099916]
[1737020738576,0.28316579,706.3,705.27,0.26042893]
[1737020738775,0.28316579,706.3,705.28,0.26042754]
[1737020738971,0.28316579,706.3,705.27,0.26042754]
[1737020739170,0.28316579,706.3,705.28,0.26042882]
[1737020739376,0.28316579,706.3,705.26,1.06099916]
[1737020739572,0.28316579,706.3,704.79,1.27319899]
[1737020739573,0.28316579,706.3,705.27,0.26042893]
[1737020739877,0.28316579,706.3,705.28,0.26042893]
[1737020740077,0.28316579,706.3,705.23,1.06099916]
[1737020740277,0.28316579,706.3,705.24,0.26042771]
[1737020740680,0.28316579,706.3,705.25,0.26042771]
[1737020740979,0.28316579,706.3,705.26,0.26042771]
[1737020741173,0.28316579,706.3,705.27,0.26042771]
[1737020741375,0.28316579,706.3,705.22,1.06099916]
[1737020741679,0.28316579,706.3,705.23,0.26042926]
[1737020741878,0.28316579,706.3,705.24,0.26042926]
[1737020742179,0.28316579,706.3,705.25,0.26042926]
[1737020742480,0.28316579,706.3,705.26,0.26042926]
[1737020742678,0.28316579,706.3,705.27,0.26042926]
[1737020742879,0.28316579,706.3,705.19,1.06099916]
[1737020743078,0.28316579,706.3,705.2,0.26043433]
[1737020743977,0.28316579,706.3,705.21,0.26043433]
[1737020744176,0.28316579,706.3,705.22,0.26043433]
[1737020744377,0.28316579,706.3,705.23,0.26041689]
[1737020744577,0.28316579,706.3,705.24,0.26041689]
[1737020744777,0.28316579,706.3,705.25,0.26041689]
[1737020744978,0.28316579,706.3,705.26,0.26041689]
[1737020745178,0.28316579,706.3,705.27,0.26041689]
[1737020745375,0.28316579,706.3,705.17,1.06099916]
[1737020745581,0.28316579,706.3,698.17,0.8320953]
[1737020745582,0.28316579,706.3,705.18,0.26042346]
[1737020745780,0.28316579,706.3,705.19,0.26042346]
[1737020745980,0.28316579,706.3,705.2,0.26042346]
[1737020746180,0.28316579,706.3,705.21,0.26042346]
[1737020746381,0.28316579,706.3,705.22,0.26042346]
[1737020746582,0.28316579,706.3,705.23,0.26042346]
[1737020746783,0.28316579,706.3,705.14,0.26042346]
[1737020746985,0.28316579,706.3,705.13,1.06099916]
[1737020747283,0.28316579,706.3,705.14,0.26042054]
[1737020747880,0.28316579,706.3,705.14,1.3214197]
[1737020748084,0.28316579,706.3,705.15,0.26042054]
[1737020749485,0.28316579,706.3,705.16,1.06099916]
[1737020749678,0.28316579,706.3,705.17,0.2603946]
[1737020750581,0.28316579,706.3,705.16,0.2603946]
[1737020750778,0.28316579,706.3,705.17,0.2603946]
[1737020750982,0.28316579,706.3,705.18,0.2603946]
[1737020751182,0.28316579,706.3,705.19,0.2603946]
[1737020751378,0.28316579,706.3,705.16,0.2603946]
[1737020751583,0.28316579,706.3,705.17,0.2603946]
[1737020751791,0.28316579,706.3,705.18,0.2603946]
[1737020751984,0.28316579,706.3,705.19,0.2603946]
[1737020752179,0.28316579,706.3,705.2,0.2603946]
[1737020752484,0.28316579,706.3,705.21,0.2603946]
[1737020752680,0.28316579,706.3,705.14,0.2603946]
[1737020752885,0.28316579,706.3,705.15,0.2603946]
[1737020753080,0.28316579,706.3,705.16,0.2603946]
[1737020753282,0.28316579,706.3,705.14,0.2603946]
[1737020753479,0.28316579,706.3,705.15,0.2603946]
[1737020753685,0.28316579,706.3,705.16,0.2603946]
[1737020753882,0.28316579,706.3,705.17,0.2603946]
[1737020754180,0.28316579,706.3,705.18,0.2603946]
[1737020754386,0.28316579,706.3,705.19,0.2603946]
[1737020754591,0.28316579,706.3,705.2,0.2603946]
[1737020754780,0.28316579,706.3,705.08,1.06099916]
[1737020754984,0.28316579,706.3,705.09,0.26043233]
[1737020755179,0.28316579,706.3,705.08,1.06099916]
[1737020755384,0.28316579,706.3,705.09,0.2604374]
[1737020756480,0.28316579,706.3,705.1,0.2604374]
[1737020756786,0.28316579,706.3,705.11,0.2604374]
[1737020756985,0.28316579,706.3,705.12,0.2604374]
[1737020757287,0.28316579,706.3,705.13,0.2604374]
[1737020757586,0.28316579,706.3,705.14,0.2604374]
[1737020757779,0.28316579,706.3,705.15,0.2604374]
[1737020757982,0.28316579,706.3,705.16,0.26043776]
[1737020758183,0.28316579,706.3,704.64,1.27319899]
[1737020758184,0.28316579,706.3,705.17,0.26043569]
[1737020758380,0.28316579,706.3,705.18,0.26043569]
[1737020758585,0.28316579,706.3,705.19,0.26043569]
[1737020758786,0.28316579,706.3,705.2,0.26043256]
[1737020758986,0.28316579,706.3,705.21,0.26043256]